bitfinex/quotes_ETHUSD_20260302
["timestamp","ask_amount","ask_price","bid_price","bid_amount"]
[1772438705737,3.76262861,1937.0,1936.1,1.74515461]
[1772438706371,0.46342401,1936.9,1936.1,1.29125561]
[1772438707178,0.00153886,1937.0,1936.2,0.453899]
[1772438707476,0.00153886,1937.0,1936.3,2.13202463]
[1772438707869,0.00153886,1937.0,1936.4,1.29105556]
[1772438708955,0.00153886,1937.0,1936.3,1.29107513]
[1772438709959,0.00153886,1937.0,1936.5,1.29098889]
[1772438710747,0.00153886,1937.0,1936.5,1.74488789]
[1772438712673,0.46496287,1937.0,1936.2,1.7450386]
[1772438713749,0.00153886,1937.0,1936.2,1.7450386]
[1772438714569,0.00153886,1937.0,1936.5,0.453899]
[1772438715997,0.00153886,1937.0,1936.2,1.2911396]
[1772438716201,0.00153886,1937.0,1936.2,2.6751396]
[1772438717001,0.00153886,1937.0,1936.2,1.2911396]
[1772438717176,0.47764328,1937.0,1936.2,1.2911396]
[1772438717590,0.001,1936.9,1936.2,1.2911396]
[1772438717777,0.48642398,1936.9,1936.1,1.29122639]
[1772438718225,0.001,1936.9,1936.2,0.4650278]
[1772438718507,0.001,1936.9,1936.4,1.75606489]
[1772438718692,0.48542398,1936.8,1935.9,5.16539989]
[1772438719368,0.48542398,1936.8,1935.9,5.63042769]
[1772438720471,1.29085557,1936.7,1935.9,1.29138901]
[1772438720803,0.001,1936.9,1936.5,0.4650278]
[1772438721002,0.001,1936.9,1936.3,1.382]
[1772438721407,0.001,1936.9,1936.2,5.10937202]
[1772438721574,0.001,1936.9,1936.3,1.382]
[1772438721775,0.001,1936.9,1936.4,0.4650278]
[1772438722429,0.00153886,1937.0,1936.5,2.59705243]
[1772438722604,0.00153886,1937.0,1936.6,1.29092223]
[1772438724337,0.00153886,1937.0,1936.6,1.75595003]
[1772438724940,0.48542398,1936.6,1935.6,5.16633676]
[1772438725108,0.48542398,1936.6,1935.6,5.63136456]
[1772438725307,0.48542398,1936.6,1935.6,0.4650278]
[1772438725618,2.13202463,1936.4,1935.6,0.4650278]
[1772438726052,2.61744861,1936.4,1935.5,1.29272423]
[1772438726976,0.48542398,1936.2,1935.5,1.29274947]
[1772438727526,5.64947531,1936.5,1935.5,1.75777727]
[1772438727954,0.48542398,1936.4,1935.5,1.75777727]
[1772438729068,1.29112224,1936.3,1935.5,3.14177727]
[1772438730270,1.77652826,1936.4,1935.5,3.14177727]
[1772438730568,1.77652826,1936.4,1935.6,0.4650278]
[1772438730741,1.77652826,1936.4,1935.6,1.8490278]
[1772438731141,1.77652826,1936.4,1935.7,1.29152244]
[1772438731770,0.48542398,1936.3,1935.6,1.383]
[1772438731940,2.61744861,1936.1,1935.5,1.3841]
[1772438732559,0.48542398,1935.8,1935.4,0.0011]
[1772438733284,0.88,1936.3,1935.4,2.13312463]
[1772438733491,1.7765925,1936.3,1935.4,2.13312463]
[1772438733697,1.7765925,1936.3,1935.4,0.0011]
[1772438734696,0.48542398,1936.2,1935.4,0.0011]
[1772438735790,1.77661524,1936.2,1935.4,1.75785044]
[1772438735994,1.7766396,1936.2,1935.4,1.75785044]
[1772438736286,1.77627955,1936.7,1935.7,0.4650278]
[1772438737786,1.29098889,1936.5,1935.8,1.29145572]
[1772438738880,1.77638182,1936.6,1935.8,1.75648352]
[1772438740160,3.30174307,1936.6,1935.8,1.75648352]
[1772438740686,1.77638182,1936.6,1935.8,1.75648352]
[1772438742096,1.77738182,1936.6,1935.8,1.75648352]
[1772438742281,0.48542398,1936.4,1935.7,1.29148225]
[1772438742797,1.29195784,1936.6,1935.8,0.4650278]
[1772438743378,1.29195784,1936.6,1935.9,0.4650278]
[1772438743578,1.29193872,1936.6,1935.9,0.4650278]
[1772438743774,0.001,1936.6,1935.9,0.4650278]
[1772438743978,0.001,1936.6,1936.0,1.29132231]
[1772438744796,0.001,1936.6,1936.2,0.4650278]
[1772438745000,0.001,1936.8,1936.2,0.4650278]
[1772438745776,0.001,1936.8,1936.3,3.36838905]
[1772438745976,1.29032258,1937.5,1936.7,1.52536125]
[1772438746287,1.29032258,1937.5,1936.7,1.99038905]
[1772438746687,0.48642398,1937.6,1936.7,1.52536125]
[1772438746904,0.001,1937.6,1937.1,1.52536125]
[1772438747064,0.001,1937.6,1937.1,1.99038905]
[1772438747269,0.001,1937.6,1937.3,1.52536125]
[1772438747476,0.00153886,1938.0,1937.5,1.98832622]
[1772438747707,0.00153886,1938.0,1937.7,1.52536125]
[1772438748004,0.001,1938.3,1938.0,1.28998968]
[1772438748497,0.001,1938.3,1937.9,1.7529772]
[1772438748703,0.001,1938.3,1937.9,1.29001223]
[1772438749071,0.4865167,1938.3,1937.5,2.66827683]
[1772438749303,0.4865167,1938.3,1937.5,1.378]
[1772438749470,0.4855167,1938.1,1937.2,0.46296497]
[1772438749902,0.4855167,1938.1,1937.3,1.356]
[1772438750200,0.4855167,1938.1,1937.2,1.83996497]
[1772438750201,2.81535093,1938.0,1937.2,1.83996497]
[1772438750392,3.30086763,1938.0,1937.2,1.377]
[1772438750593,1.28998968,1938.0,1937.2,4.6558295]
[1772438750902,3.30086763,1938.0,1937.2,1.377]
[1772438751098,1.77550638,1938.0,1937.2,1.377]
[1772438751701,5.15958197,1938.2,1937.4,1.52536125]
[1772438751909,5.64509867,1938.2,1937.3,1.83996497]
[1772438752714,5.64509867,1938.2,1937.3,0.46296497]
[1772438752715,7.17045992,1938.2,1937.3,0.46296497]
[1772438752896,0.4855167,1938.2,1937.4,2.90236125]
[1772438753069,1.29084423,1938.3,1937.4,3.36532622]
[1772438753398,0.4855167,1938.2,1937.3,1.29045363]
[1772438753587,0.4855167,1938.1,1937.4,1.376]
[1772438753902,0.4855167,1938.1,1937.4,1.3771]
[1772438754099,0.4855167,1938.1,1937.4,0.0011]
[1772438754299,0.4855167,1938.1,1937.4,1.3771]
[1772438754473,0.001,1938.2,1937.4,1.84006497]
[1772438754799,0.001,1938.2,1937.7,1.29018939]
[1772438755016,0.001,1938.2,1937.6,1.29020518]
[1772438755310,0.001,1938.2,1937.7,1.376]
[1772438755670,0.4865167,1938.2,1937.4,1.3771]
[1772438756775,1.28992312,1938.1,1937.4,1.3771]
[1772438757196,1.28992312,1938.1,1937.4,2.66748257]
[1772438757406,1.28992312,1938.1,1937.4,1.3771]
[1772438757818,1.77543982,1938.1,1937.4,1.3771]
[1772438757981,1.77543982,1938.1,1937.4,0.0011]
[1772438758474,0.4855167,1938.0,1937.4,0.0011]
[1772438758875,1.29005624,1937.9,1937.4,0.0011]
[1772438759070,1.77557294,1937.9,1937.1,0.0011]
[1772438759274,0.4855167,1937.6,1937.1,0.0011]
[1772438760478,0.4855167,1937.3,1936.4,1.83596497]
[1772438760786,3.30140035,1937.2,1936.4,0.46296497]
[1772438761086,1.2905224,1937.2,1936.4,0.46296497]
[1772438761290,1.29038918,1937.4,1936.7,1.52536125]
[1772438761611,1.29038918,1937.4,1936.8,1.373]
[1772438762281,1.29038918,1937.4,1936.5,0.46296497]
[1772438762477,1.29038918,1937.4,1936.8,1.373]
[1772438762680,1.29005624,1937.9,1937.3,0.46296497]
[1772438762986,0.00153886,1938.0,1937.3,1.75340962]
[1772438763186,0.00153886,1938.0,1937.3,0.46296497]
[1772438763779,0.00153886,1938.0,1936.9,5.16277116]
[1772438763780,2.01087795,1937.8,1936.9,1.83596497]
[1772438763986,0.4855167,1937.7,1936.9,1.373]
[1772438764912,2.01087795,1937.5,1936.4,3.36032622]
[1772438765113,2.01087795,1937.5,1936.4,1.98832622]
[1772438765414,0.4855167,1937.4,1936.4,1.98832622]
[1772438765715,0.4855167,1937.4,1936.5,1.372]
[1772438766016,0.4855167,1937.4,1936.4,0.46296497]
[1772438766215,0.4855167,1937.4,1936.4,1.98832622]
[1772438766514,0.4855167,1937.4,1937.3,0.0011]
[1772438766697,0.4855167,1937.4,1937.1,0.0011]
[1772438766887,0.4855167,1937.4,1936.5,1.372]
[1772438767479,0.4855167,1937.4,1936.4,0.46296497]
[1772438767480,1.77597248,1937.3,1936.4,0.46296497]
[1772438767682,1.77597248,1937.3,1936.4,1.83396497]
[1772438768696,0.4855167,1937.2,1936.4,1.83396497]
[1772438769507,1.29058902,1937.1,1936.4,1.83396497]
[1772438769813,1.29058902,1937.1,1936.5,1.37]
[1772438770910,1.29058902,1937.1,1936.5,1.369]
[1772438771217,0.4855167,1937.0,1936.5,1.369]
[1772438771612,1.77623898,1936.9,1936.2,1.369]
[1772438772186,1.77623898,1936.9,1936.1,2.97528456]
[1772438772387,1.77623898,1936.9,1936.0,0.00153886]
[1772438772388,0.4855167,1936.4,1936.0,0.00153886]
[1772438773609,1.29112224,1936.3,1935.6,1.368]
[1772438773816,1.77663894,1936.3,1935.6,1.368]
[1772438774489,0.4855167,1936.2,1935.5,0.0011]
[1772438774689,2.01087795,1936.1,1935.5,0.0011]
[1772438775922,1.74678122,1936.0,1935.5,0.0011]
[1772438777119,0.45545891,1935.9,1935.5,0.0011]
[1772438777323,0.464633,1935.7,1935.3,0.0011]
[1772438777817,1.29158917,1935.6,1935.3,0.0011]
[1772438778425,1.29118892,1936.2,1935.6,0.0011]
[1772438778631,0.464633,1936.1,1935.6,0.0011]
[1772438779828,1.29132231,1936.0,1935.6,0.0011]
[1772438780034,1.29112224,1936.3,1935.6,0.0011]
[1772438780232,0.464633,1936.2,1935.6,0.0011]
[1772438780833,0.464633,1936.1,1935.6,0.0011]
[1772438781119,1.29112224,1936.3,1935.6,0.0011]
[1772438781434,1.75575524,1936.3,1935.6,0.0011]
[1772438781591,1.29112224,1936.3,1935.6,1.99452593]
[1772438781796,1.29098889,1936.5,1935.7,1.29152244]
[1772438782228,1.29098889,1936.5,1935.6,3.2860698]
[1772438783936,1.29098889,1936.5,1935.7,0.46806468]
[1772438784435,1.29098889,1936.5,1935.8,1.82906468]
[1772438784596,1.29098889,1936.5,1935.8,3.35442593]
[1772438784796,1.29095349,1936.6,1935.9,0.46806468]
[1772438785436,0.464633,1936.5,1935.7,1.361]
[1772438786108,1.29105556,1936.4,1935.7,2.65251449]
[1772438786308,1.29105556,1936.4,1935.6,1.76070699]
[1772438786510,1.29105556,1936.4,1935.6,3.12070699]
[1772438786825,0.464633,1936.3,1935.6,0.0011]
[1772438787724,0.464633,1936.1,1935.6,0.0011]
[1772438788109,1.98999425,1935.9,1935.3,0.0011]
[1772438788443,0.464633,1935.8,1935.3,0.0011]
[1772438788810,1.29132231,1936.0,1935.3,0.0011]
[1772438789315,1.75595531,1936.0,1935.3,0.0011]
[1772438789904,1.29132231,1936.0,1935.3,0.46916468]
[1772438790097,5.16517649,1936.2,1935.3,0.46916468]
[1772438790296,5.62980949,1936.2,1935.4,0.0011]
[1772438790719,1.98999425,1936.1,1935.4,0.0011]
[1772438791123,0.464633,1936.0,1935.4,0.0011]
[1772438791438,1.98999425,1935.9,1935.4,0.0011]
[1772438791639,0.464633,1935.6,1935.2,0.0011]
[1772438792141,1.2916559,1935.5,1935.2,0.0011]
[1772438794243,1.29145572,1935.8,1935.2,0.0011]
[1772438794535,1.29145572,1935.8,1935.2,0.46916468]
[1772438794719,1.29145572,1935.8,1935.2,1.3551]
[1772438795720,1.29145572,1935.8,1935.2,0.0011]
[1772438795721,1.98999425,1935.6,1935.2,0.0011]
[1772438795917,0.464633,1935.6,1935.2,0.0011]
[1772438796437,5.16572778,1935.9,1935.2,0.46916468]
[1772438797028,5.63036078,1935.9,1935.2,0.0011]
[1772438797413,0.464633,1935.8,1935.2,0.0011]
[1772438797615,5.16466631,1936.3,1935.6,1.52536125]
[1772438798446,1.29212224,1936.4,1935.6,2.81690343]
[1772438798625,1.29212224,1936.4,1935.5,3.89548485]
[1772438799018,1.29212224,1936.4,1935.5,3.89551373]
[1772438799326,1.29212224,1936.4,1935.5,5.24751466]
[1772438799714,1.29212224,1936.4,1935.5,3.89551466]
[1772438800042,1.75675524,1936.4,1935.6,1.351]
[1772438800239,1.75675524,1936.4,1935.5,3.89551465]
[1772438800439,0.464633,1936.2,1935.2,0.46916468]
[1772438800639,0.464633,1936.2,1935.3,1.351]
[1772438800811,0.464633,1936.2,1935.3,1.81906468]
[1772438801142,0.001,1936.4,1935.6,2.60386041]
[1772438801342,0.001,1936.4,1935.6,0.46806468]
[1772438801842,0.001,1936.4,1935.6,1.81906468]
[1772438802344,0.001,1936.1,1935.6,1.81906468]
[1772438802545,0.465633,1936.1,1935.3,0.0011]
[1772438802744,0.464633,1936.0,1935.3,0.0011]
[1772438803049,0.464633,1935.8,1935.3,0.0011]
[1772438804157,0.465633,1936.1,1935.3,0.0011]
[1772438804462,0.001,1936.1,1935.4,2.60386041]
[1772438804750,0.001,1936.1,1935.5,1.75967033]
[1772438804934,0.001,1936.1,1935.6,1.81706468]
[1772438805252,1.29205556,1936.4,1935.8,2.60386041]
[1772438805253,0.001,1936.4,1935.8,2.60386041]
[1772438805456,0.001,1936.4,1935.8,1.81806468]
[1772438806219,0.001,1936.4,1935.9,1.35]
[1772438807058,0.465633,1936.4,1935.6,1.349]
[1772438807343,0.465633,1936.4,1935.6,2.60591477]
[1772438807522,0.465633,1936.4,1935.7,1.349]
[1772438807729,0.465633,1936.4,1935.7,1.81911904]
[1772438808642,0.001,1936.4,1935.9,0.47011904]
[1772438809152,0.001,1936.4,1936.0,1.29132231]
[1772438809331,0.001,1936.4,1935.8,1.348]
[1772438810025,0.001,1936.4,1935.7,0.47011904]
[1772438810229,0.001,1936.4,1935.8,1.348]
[1772438810957,0.001,1936.4,1935.8,1.81811904]
[1772438811144,0.001,1936.4,1935.9,1.348]
[1772438811344,0.001,1936.4,1935.8,1.76156639]
[1772438811557,0.001,1936.4,1935.8,3.10956639]
[1772438812089,0.4906432,1936.4,1935.8,2.63944621]
[1772438812261,0.001,1936.4,1935.8,3.10956525]
[1772438812749,0.001,1936.4,1935.9,0.47011904]
[1772438813145,0.001,1936.4,1935.9,1.349]
[1772438813350,0.001,1936.4,1935.9,1.81911904]
[1772438814163,0.001,1936.3,1935.9,1.81911904]
[1772438815366,0.001,1936.3,1935.8,0.0011]
[1772438815533,0.001,1936.3,1935.9,1.35]
[1772438816174,0.001,1936.3,1935.9,1.82011904]
[1772438817576,0.001,1936.3,1935.9,3.11150638]
[1772438817748,0.001,1936.3,1935.9,1.82011904]
[1772438818279,0.001,1936.3,1935.9,3.11149969]
[1772438818576,0.001,1936.3,1935.9,1.82011904]
[1772438819077,0.001,1936.3,1935.9,3.11150674]
[1772438819977,0.001,1936.3,1936.0,0.47011904]
[1772438820278,0.001,1936.3,1935.8,2.13689573]
[1772438820477,0.4906432,1936.3,1935.8,0.0011]
[1772438821176,0.4906432,1936.3,1935.8,1.29255384]
[1772438821348,0.001,1936.3,1935.8,1.76267288]
[1772438821754,0.001,1936.4,1936.0,2.60591477]
[1772438822116,0.001,1936.4,1936.1,1.82211904]
[1772438822294,5.16417642,1937.0,1936.1,1.82211904]
[1772438822295,1.29221743,1937.0,1936.3,0.47011904]
[1772438822478,1.78186063,1937.0,1936.3,0.47011904]
[1772438822656,0.4896432,1936.9,1936.0,0.47011904]
[1772438822856,0.4896432,1936.9,1936.1,1.352]
[1772438823057,0.4896432,1936.9,1936.1,0.47011904]
[1772438823272,0.4896432,1936.9,1936.2,1.352]
[1772438823487,1.29078893,1936.8,1936.2,1.352]
[1772438823689,1.78043213,1936.8,1936.3,1.352]
[1772438824691,1.78043213,1936.8,1935.8,0.47121904]
[1772438824692,0.4896432,1936.7,1935.8,0.47121904]
[1772438825016,0.4896432,1936.6,1935.8,0.0011]
[1772438825372,0.4896432,1936.6,1935.9,1.352]
[1772438825607,1.78063209,1936.5,1935.9,1.352]
[1772438825925,1.78063209,1936.5,1935.8,0.0011]
[1772438826081,1.78063209,1936.5,1935.8,1.3531]
[1772438826082,0.4896432,1936.4,1935.8,1.3531]
[1772438827170,0.001,1936.7,1935.9,2.13579573]
[1772438827280,1.29186448,1936.7,1936.0,2.60591477]
[1772438827920,0.4906432,1936.7,1936.1,1.354]
[1772438828077,0.4906432,1936.7,1936.0,1.76143224]
[1772438828284,0.4906432,1936.7,1936.0,3.11544124]
[1772438828484,0.001,1936.7,1936.1,0.47011904]
[1772438829798,0.001,1936.7,1936.2,1.29118892]
[1772438829997,0.001,1936.7,1936.4,2.13579573]
[1772438830203,0.00153886,1937.0,1936.5,1.82511904]
[1772438830507,0.00153886,1937.0,1936.5,1.355]
[1772438830815,0.00153886,1937.0,1936.6,0.47011904]
[1772438831205,0.4896432,1937.7,1936.9,0.47011904]
[1772438831403,0.4896432,1937.7,1937.0,3.49079573]
[1772438831601,0.4896432,1937.7,1937.0,1.355]
[1772438832123,0.4896432,1937.7,1937.1,1.29058902]
[1772438832307,1.29016541,1937.8,1937.1,1.29058902]
[1772438832813,1.29016541,1937.8,1937.0,1.29064229]
[1772438833012,1.29016541,1937.8,1937.1,1.355]
[1772438833386,1.29016541,1937.8,1937.1,1.84545174]
[1772438834101,5.6427439,1937.9,1937.1,3.13603974]
[1772438834313,0.48141055,1937.8,1937.2,1.354]
[1772438834497,0.48141055,1937.8,1937.1,1.354]
[1772438834887,0.48141055,1937.8,1936.9,1.29068782]
[1772438835100,0.48141055,1937.8,1937.0,1.354]
[1772438835907,0.48141055,1937.8,1937.0,1.84445174]
[1772438836104,1.29018939,1937.7,1937.0,1.84445174]
[1772438836412,1.29018939,1937.7,1937.0,3.13510041]
[1772438837415,1.29018939,1937.7,1937.0,1.84445174]
[1772438837620,0.48918492,1937.6,1936.8,1.353]
[1772438838117,0.48918492,1937.4,1936.8,1.353]
[1772438838322,0.48918492,1937.3,1936.4,3.13564526]
[1772438839316,0.48918492,1937.3,1936.5,1.352]
[1772438840018,0.48918492,1937.3,1936.4,1.78264526]
[1772438840316,0.48918492,1937.1,1936.4,0.49164863]
[1772438840618,0.48918492,1937.1,1936.5,1.352]
[1772438840817,0.48918492,1937.1,1936.4,1.78270335]
[1772438841124,0.48918492,1937.1,1936.5,1.351]
[1772438842525,1.77982666,1937.1,1936.5,2.6419576]
[1772438843923,1.77982666,1937.1,1936.5,2.64198759]
[1772438844324,1.77982666,1937.1,1936.5,1.351]
[1772438844527,0.48918492,1937.0,1936.3,0.0011]
[1772438845138,0.48918492,1937.3,1936.3,1.29220985]
[1772438846424,1.77970732,1937.2,1936.3,1.29220985]
[1772438846609,0.48918492,1937.1,1936.4,1.352]
[1772438847209,0.48918492,1937.1,1936.3,0.0011]
[1772438847412,0.48918492,1937.1,1936.4,1.352]
[1772438848017,0.48918492,1937.1,1936.3,0.0011]
[1772438848528,1.29065565,1937.0,1936.3,0.0011]
[1772438848723,0.48918492,1936.9,1936.3,0.0011]
[1772438850341,0.48918492,1936.9,1936.3,1.3511]
[1772438850741,1.29078893,1936.8,1936.3,1.3511]
[1772438851039,1.77995494,1936.9,1936.3,1.3511]
[1772438851330,1.77995494,1936.9,1936.4,0.0011]
[1772438854854,1.77982982,1937.1,1936.4,2.62854436]
[1772438855028,1.77982982,1937.1,1936.5,0.49164863]
[1772438855957,1.77982982,1937.1,1936.5,1.84064863]
[1772438858040,1.77978123,1937.1,1936.6,0.49164863]
[1772438859562,0.48918492,1937.0,1936.4,0.0011]
[1772438860160,0.48918492,1936.8,1936.4,0.0011]
[1772438861931,1.78002761,1936.8,1936.4,0.0011]
[1772438862333,1.29084269,1936.8,1936.4,0.0011]
[1772438863259,1.29077084,1936.9,1936.4,0.0011]
[1772438864330,1.77995576,1936.9,1936.5,0.0011]
[1772438864536,0.48918492,1936.8,1936.5,0.0011]
[1772438865966,0.48918492,1936.8,1936.3,0.0011]
[1772438866263,0.48918492,1936.5,1936.3,0.0011]
[1772438868432,1.29092223,1936.6,1936.3,0.0011]
[1772438868634,1.75318639,1936.6,1936.3,0.0011]
[1772438868843,0.46226416,1936.5,1936.3,0.0011]
[1772438869355,1.75318639,1936.6,1936.3,0.0011]
[1772438869539,0.46226416,1936.5,1936.3,0.0011]
[1772438870768,1.75329092,1936.5,1936.3,0.0011]
[1772438871066,0.46226416,1936.4,1936.3,0.0011]
[1772438871268,0.46226416,1936.4,1935.8,0.0011]
[1772438871467,0.46226416,1936.1,1935.5,0.0011]
[1772438872764,0.46226416,1936.1,1935.5,1.7689047]
[1772438872968,1.29132231,1936.0,1935.5,0.47725083]
[1772438873546,1.29132231,1936.0,1935.5,0.0011]
[1772438873870,0.46226416,1935.8,1935.5,0.0011]
[1772438874869,1.29152244,1935.7,1935.5,0.0011]
[1772438875180,1.75376679,1935.8,1935.5,0.0011]
[1772438875466,1.29150263,1935.8,1935.5,0.0011]
[1772438875766,0.46226416,1935.7,1935.5,0.0011]
[1772438876948,1.75378694,1935.7,1935.5,0.0011]
[1772438877151,1.75362397,1936.0,1935.6,0.0011]
[1772438877346,0.46226416,1935.9,1935.6,0.0011]
[1772438879476,3.67256925,1936.1,1935.6,0.0011]
[1772438880048,3.21030509,1936.1,1935.6,0.0011]
[1772438880247,0.46226416,1936.0,1935.6,0.0011]
[1772438880451,1.75356925,1936.1,1935.6,0.0011]
[1772438880781,0.46226416,1936.0,1935.6,0.0011]
[1772438881552,1.29138901,1935.9,1935.6,0.0011]
[1772438882055,1.75365317,1935.9,1935.6,0.0011]
[1772438882553,0.46226416,1935.6,1935.3,0.0011]
[1772438882752,0.46226416,1935.6,1934.7,0.47615083]
[1772438882753,1.9871897,1935.4,1934.7,0.47615083]
[1772438882958,0.46226416,1935.3,1934.7,0.47615083]
[1772438883480,0.46226416,1935.3,1934.6,1.336]
[1772438883688,0.46226416,1935.1,1934.3,1.29241445]
[1772438883860,0.46226416,1935.0,1934.2,1.76863459]
[1772438884049,0.46226416,1934.9,1934.2,1.76863459]
[1772438884887,4.73578167,1935.2,1934.3,0.47615083]
[1772438885191,0.46226416,1935.1,1934.5,0.47615083]
[1772438885675,1.75421307,1935.1,1934.5,1.76841574]
[1772438886189,1.9871897,1935.0,1934.3,1.29241641]
[1772438886368,0.46226416,1935.0,1934.3,1.29241641]
[1772438886769,0.46226416,1935.0,1934.3,1.76856724]
[1772438887492,0.46226416,1935.0,1934.4,0.47615083]
[1772438887870,1.75427175,1935.0,1934.4,1.76849903]
[1772438888387,0.46226416,1935.0,1934.4,1.76849903]
[1772438888889,1.75416765,1935.2,1934.5,0.47615083]
[1772438889186,0.46226416,1935.1,1934.5,0.47615083]
[1772438889764,1.29198966,1935.0,1934.5,0.47615083]
[1772438890092,0.46226416,1935.0,1934.4,2.6294482]
[1772438890261,1.75515923,1935.2,1934.5,0.47615083]
[1772438891303,0.001,1935.2,1934.9,0.47615083]
[1772438891491,1.75388714,1935.6,1934.9,1.81215083]
[1772438891805,1.75388714,1935.6,1935.0,1.29198966]
[1772438892224,0.46226416,1935.9,1935.1,0.47615083]
[1772438892381,1.75365317,1935.9,1935.1,0.47615083]
[1772438892706,1.75365317,1935.9,1935.2,1.336]
[1772438893074,1.75365317,1935.9,1935.2,1.81215083]
[1772438893904,1.75365317,1935.9,1935.2,3.10398879]
[1772438894608,0.45856759,1935.7,1935.0,1.77147246]
[1772438894905,0.45856759,1935.7,1935.0,1.29195932]
[1772438895475,1.52492554,1935.6,1934.8,0.47951314]
[1772438895696,0.45856759,1935.5,1934.8,1.336]
[1772438895903,1.29172264,1935.4,1934.7,1.29219]
[1772438896109,1.29172264,1935.4,1934.8,1.336]
[1772438896277,1.75026115,1935.5,1934.8,1.336]
[1772438896806,5.1662102,1935.7,1934.9,0.47951314]
[1772438896807,1.29164136,1935.6,1934.9,0.47951314]
[1772438897006,0.45856759,1935.5,1934.9,1.81551314]
[1772438897401,0.45856759,1935.5,1934.8,1.336]
[1772438897597,0.46661477,1935.4,1934.7,1.74303324]
[1772438897799,1.75825613,1935.6,1934.8,0.45084324]
[1772438898192,0.46661477,1935.5,1934.8,1.74290914]
[1772438899521,1.75803142,1935.9,1935.1,0.45084324]
[1772438900798,1.75803142,1935.9,1935.2,3.07769937]
[1772438901521,0.001,1935.4,1935.2,3.07769937]
[1772438902034,0.001,1935.4,1935.2,1.335]
[1772438902197,0.001,1935.4,1935.1,1.336]
[1772438902597,0.46661477,1935.8,1935.1,1.78684324]
[1772438903095,1.29142469,1935.9,1935.3,0.45084324]
[1772438904124,1.75803946,1935.9,1935.3,0.45084324]
[1772438904791,0.46661477,1935.8,1935.1,0.45084324]
[1772438904992,0.46661477,1935.8,1935.1,1.78684324]
[1772438905224,0.46661477,1935.6,1935.1,1.336]
[1772438905414,0.46661477,1935.6,1934.9,1.74394636]
[1772438905617,0.46661477,1935.6,1934.9,3.07994636]
[1772438907228,1.2916559,1935.5,1934.9,3.07994636]
[1772438908646,1.75825087,1935.6,1934.9,3.07994636]
[1772438908852,1.7595252,1936.0,1935.2,0.45084324]
[1772438909126,1.7595252,1936.0,1935.3,1.78784324]
[1772438909127,0.46661477,1935.9,1935.3,1.78784324]
[1772438909295,1.29145572,1935.8,1935.3,1.78784324]
[1772438909499,0.46661477,1935.7,1935.0,1.29198516]
[1772438909789,0.46661477,1935.6,1934.9,0.0011]
[1772438910116,0.46661477,1935.6,1934.9,1.29315295]
[1772438910826,0.46661477,1935.6,1934.9,0.0011]
[1772438911208,1.2916559,1935.5,1934.9,1.29315574]
[1772438911525,0.46661477,1935.5,1934.9,1.74399898]
[1772438911733,0.46661477,1935.5,1934.9,0.45194324]
[1772438913612,1.29172264,1935.4,1934.9,1.74396658]
[1772438913810,0.001,1935.5,1935.0,0.45084324]
[1772438914717,1.29138901,1935.9,1935.2,0.45084324]
[1772438914914,1.75800378,1935.9,1935.3,0.45084324]
[1772438915237,0.46661477,1935.8,1935.2,1.337]
[1772438915433,0.46661477,1935.8,1935.1,0.45084324]
[1772438915733,1.75820394,1935.6,1934.9,3.07999424]
[1772438916236,0.46661477,1935.8,1935.0,0.45084324]
[1772438917342,0.46661477,1935.8,1935.0,1.78684324]
[1772438917835,1.75812195,1935.8,1935.1,1.74276613]
[1772438918138,0.46661477,1935.7,1935.1,1.74276613]
[1772438918336,0.46661477,1935.7,1935.1,0.45084324]
[1772438919811,1.75820034,1935.7,1935.1,1.74271728]
[1772438921211,1.29152439,1935.7,1935.2,0.45084324]
[1772438921936,1.75807049,1935.8,1935.2,1.74267576]
[1772438922145,0.46661477,1935.8,1935.2,1.74267576]
[1772438923013,1.29142885,1935.9,1935.3,0.45084324]
[1772438923314,1.75804362,1935.9,1935.3,0.45084324]
[1772438924154,1.75804362,1935.9,1935.4,0.45084324]
[1772438925348,0.001,1935.6,1935.4,0.45084324]
[1772438926234,0.001,1935.6,1935.4,1.74251887]
[1772438928954,0.001,1935.6,1935.4,0.45084324]
[1772438929372,0.001,1935.6,1935.4,1.74256091]
[1772438929669,0.46661477,1935.9,1935.4,3.08356091]
[1772438930173,0.00153886,1936.0,1935.5,0.47646011]
[1772438930665,1.29287007,1936.0,1935.6,1.342]
[1772438930968,0.00153886,1936.0,1935.6,1.81846011]
[1772438931169,0.00153886,1936.0,1935.6,3.11001701]
[1772438931469,0.50104576,1936.0,1935.6,3.11001701]
[1772438932350,0.50104576,1936.0,1935.2,0.47646011]
[1772438932351,0.4995069,1935.9,1935.2,0.47646011]
[1772438932733,0.4995069,1935.7,1935.0,3.11253837]
[1772438933135,1.79109607,1935.6,1935.0,3.11253837]
[1772438933635,0.4995069,1935.8,1935.1,0.47646011]
[1772438933835,1.79097908,1935.8,1935.1,0.47646011]
[1772438934076,0.4995069,1935.7,1935.1,0.47646011]
[1772438934271,1.7909227,1935.9,1935.1,0.47646011]
[1772438934447,1.79089819,1935.9,1935.1,0.47646011]
[1772438935362,0.4995069,1935.9,1935.3,0.47646011]
[1772438935562,0.4995069,1935.8,1935.1,1.76837484]
[1772438936355,0.4995069,1935.8,1935.2,0.47646011]
[1772438936543,1.79237834,1936.0,1935.4,0.47646011]
[1772438936885,1.79237834,1936.0,1935.5,0.47646011]
[1772438936886,0.50104576,1936.0,1935.5,0.47646011]
[1772438937386,1.79094571,1935.9,1935.4,2.63472108]
[1772438937551,0.4995069,1935.9,1935.4,3.11118119]
[1772438937877,0.001,1935.7,1935.4,3.11118119]
[1772438938250,0.4995069,1935.6,1935.2,0.0011]
[1772438939938,0.4995069,1935.5,1934.9,0.0011]
[1772438940143,0.4995069,1935.2,1934.7,0.0011]
[1772438941579,0.4995069,1935.2,1934.7,1.29328398]
[1772438942261,0.4995069,1935.2,1934.7,0.0011]
[1772438943383,1.79136532,1935.2,1934.7,0.0011]
[1772438943548,0.4995069,1935.2,1934.7,0.0011]
[1772438944080,0.4995069,1935.4,1934.7,0.47756011]
[1772438944450,1.29178938,1935.3,1934.7,1.76970374]
[1772438945086,1.79129628,1935.3,1934.7,3.11370374]
[1772438945257,0.4995069,1935.3,1934.7,3.11370374]
[1772438946686,0.4995069,1935.1,1934.7,0.0011]
[1772438947056,0.4995069,1935.1,1934.6,0.0011]
[1772438947390,0.4995069,1934.9,1934.6,0.0011]
[1772438948981,1.79163011,1934.8,1934.6,0.0011]
[1772438949365,1.79163011,1934.8,1934.7,0.0011]